Cogmind - Beta 14 @@@ ROGUE MODE // 2024.10.28 @ 18:12:27 Player: Komeiji O. Result: Destroyed by D-53 Grenadier with Mini Grenade Launcher Performance ------------- Evolutions (0) 0 Regions Visited (2) 400 Robots Destroyed (15) 75 Value Destroyed (535) 535 Prototype IDs (0) 0 Alien Tech Used (0) 0 Bonus (0) 0 TOTAL SCORE: 1010 Bonus ------- None Cogmind --------- Core Integrity 0/250 Matter 223/300 Energy 100/100 System Corruption 5% Temperature Cool (0) Movement Treading (240) Ox1 Location -10/Mines Parts ------- > --- POWER (1) -------- (None) > --- PROPULSION (2) --- Light Treads > --- UTILITY (2) ------ Heat Sink Large Storage Unit > --- WEAPON (2) ------- Light Assault Rifle Grenade Launcher > --- INVENTORY (15) --- Ion Engine Ion Engine Light Ion Engine Light Nuclear Core Wheel Compact Wheel Heat Sink Tractor Beam Beam Cannon Assault Rifle Light Cannon Datajack Peak State ------------ > --- POWER ------------ Ion Engine > --- PROPULSION ------- Wheel Compact Wheel > --- UTILITY ---------- Large Storage Unit Light Armor Plating > --- WEAPON ----------- Assault Rifle Assault Rifle > --- INVENTORY -------- Light Ion Engine Light Nuclear Core Light Treads Light Treads Wheel Tractor Beam Beam Cannon Light Assault Rifle Light Cannon [Rating: 8] Favorites ----------- Power Ion Engine Engine Ion Engine Propulsion Light Treads Treads Light Treads Wheel Wheel Utility Large Storage Unit Device Heat Sink Storage Large Storage Unit Protection Light Armor Plating Weapon Assault Rifle Ballistic Gun Assault Rifle Launcher Grenade Launcher Build | -11 -10 -10 ------- Run | Yrd Mat Min Slots Evolved . | . . . Power . | . . . Propulsion . | . . . Utility . | . . . Weapon . | . . . Parts Attached 17 | 7 9 1 Power 3 | 1 2 . Engine 3 | 1 2 . Core . | . . . Reactor . | . . . Propulsion 5 | 2 3 . Treads 2 | . 2 . Leg . | . . . Wheel 3 | 2 1 . Hover . | . . . Flight . | . . . Utility 5 | 2 3 . Device 2 | 1 1 . Storage 2 | 1 1 . Processor . | . . . Hackware . | . . . Protection 1 | . 1 . Artifact . | . . . Weapon 4 | 2 1 1 Energy Gun . | . . . Energy Cannon . | . . . Ballistic Gun 3 | 2 1 . Ballistic Cannon . | . . . Launcher 1 | . . 1 Special Weapon . | . . . Impact Weapon . | . . . Slashing Weapon . | . . . Piercing Weapon . | . . . Special Melee Weapon . | . . . Unidentified Prototypes . | . . . Parts Lost 5 | . 4 1 Power . | . . . Propulsion 2 | . 1 1 Utility 2 | . 2 . Weapon 1 | . 1 . Highest Loss Streak 2 | . 2 1 To Critical Strikes . | . . . Average Slot Usage (%) 99 | . 99 99 Engine 13 | . 14 13 Treads 15 | . 9 27 Wheel 12 | . 18 . Device 11 | . 10 14 Storage 14 | . 14 14 Protection 1 | . 2 . Ballistic Gun 27 | . 28 26 Peak Build Rating 8 | 7 8 8 Average Rating 7 | 5 7 7 On Entrance 5 | . 7 8 Naked Turns . | . . . Heaviest Build 32 | 15 32 30 Greatest Support 40 | 26 40 40 Greatest Overweight (x) 1 | 1 1 1 Average Overweight (x) . | . . . Largest Inventory Capacity 15 | 8 15 15 Average Capacity 12 | 7 11 15 Most Carried 12 | 4 12 12 Average Carried 9 | 2 8 12 Final Capacity 15 | 8 15 15 Final Carried 12 | 4 12 12 Class Distribution -------------------- 100% | Mutant Dominant Class ---------------- Mutant | -10/Materials Mutant | -10/Mines Resources | -11 -10 -10 ----------- Run | Yrd Mat Min Matter Collected 632 | 276 336 20 Remotely . | . . . Salvage Created 649 | 22 614 13 Parts 33 | 4 29 . Haulers Intercepted . | . . . Recyclers Shooed . | . . . Parts Field Recycled . | . . . Retrieved Matter . | . . . Parts Self-Destructed . | . . . Prevented . | . . . Kills | -11 -10 -10 ------- Run | Yrd Mat Min Combat Hostiles Destroyed 25 | . 14 11 Guns 15 | . 14 1 AOE 10 | . . 10 Classes Destroyed 3 | 1 1 1 Tunneler 1 | 1 . . Grunt 14 | . 14 . Assembled 11 | . . 11 Best Kill Streak 11 | 1 4 11 Combat Bots Only 11 | . 4 11 Max Kills in Single Turn 7 | 1 2 7 Gunslinging 1 | . 1 . Exploded 6 | . . 6 Melee . | . . . Uniques/NPCs Destroyed . | . . . Combat | -11 -10 -10 -------- Run | Yrd Mat Min Hostile Shots Fired 108 | . 96 12 Missed 29 | . 26 3 Damage Taken 1180 | . 846 334 Core 250 | . 197 53 Absorbed by Shields . | . . . Core Remaining (%) 100 | 100 . . Volleys Fired 57 | 1 48 8 Largest 2 | 2 2 2 Hottest 50 | 40 40 50 Shots Fired 110 | 2 94 14 Gun 105 | 2 94 9 Cannon . | . . . Launcher 5 | . . 5 Special . | . . . Kinetic 105 | 2 94 9 Thermal . | . . . Explosive 5 | . . 5 Electromagnetic . | . . . Robot Hit Streak 8 | 2 8 4 Robot Miss Streak 3 | . 2 3 Penetration Max . | . . . Secondary Targets 3 | . 3 . Max Gunslinging Chain 1 | . 1 . Shots Hit Robots 78 | 2 70 6 Core Hits 52 | 1 29 22 Critical Kills 1 | . 1 . Critical Parts Destroyed . | . . . Critical Strikes 1 | . 1 . Destroy 1 | . 1 . Melee Attacks . | . . . Impact . | . . . Slashing . | . . . Piercing . | . . . Sneak Attacks . | . . . Combat Hostiles . | . . . Follow-up Attacks . | . . . Damage Inflicted 1545 | 25 845 675 Guns 894 | 25 841 28 Cannons . | . . . Explosions 647 | . . 647 Melee . | . . . Ramming 4 | . 4 . Kinetic 894 | 25 841 28 Thermal . | . . . Explosive 647 | . . 647 Electromagnetic . | . . . Impact . | . . . Slashing . | . . . Piercing . | . . . Highest Corruption 5 | . 5 5 Average Corruption 4 | . 4 5 Corruption Purged . | . . . Corruption Blocked . | . . . Effects 21 | . 12 9 Message Errors 6 | . 3 3 Matter Fused 8 | . 6 2 Heat Flow Errors 1 | . . 1 Energy Discharges 1 | . 1 . Parts Rejected 1 | . . 1 Data Loss (minor) 3 | . 1 2 Weapon Failures 1 | . 1 . Overload Shots . | . . . Overflow Damage 35 | . . 35 Projectiles . | . . . Explosions 35 | . . 35 Melee . | . . . Knockbacks . | . . . Impact . | . . . Kinetic . | . . . Secondary . | . . . Self-Inflicted Damage 52 | . 2 50 Shots 2 | . . 2 Rammed 1 | . 1 . Targets Rammed 1 | . 1 . Kicked . | . . . Crushed . | . . . Highest Temperature 70 | . 14 70 Average Temperature 7 | . 5 31 Received Heat Transfer 520 | . 474 46 Siege Activations . | . . . Robots Corrupted . | . . . Combat Hostiles . | . . . Parts Fried . | . . . Impact Corruptions . | . . . Robots Melted . | . . . Combat Hostiles . | . . . Parts Melted . | . . . Heat Transferred . | . . . Parts Sabotaged . | . . . Parts Stolen . | . . . Parts Stripped . | . . . Power Chain Reactions . | . . . Alert | -11 -10 -10 ------- Run | Yrd Mat Min Peak Influence 280 | 5 280 126 Initial 109 | . 3 109 Average 102 | 1 108 107 Maximum Alert Level 1 | . 1 . Low Security (%) 83 | 100 73 100 Level 1 16 | . 26 . Level 2 . | . . . Level 3 . | . . . Level 4 . | . . . Level 5 . | . . . High Security . | . . . Max Security . | . . . Squads Dispatched 3 | . 3 . Investigation 1 | . 1 . Extermination . | . . . Reinforcement 2 | . 2 . Assault . | . . . Garrison . | . . . Intercept . | . . . Searches Triggered . | . . . Construction Impeded . | . . . Haulers Reinforced . | . . . Active Scanning Responses . | . . . Cargo Convoy Interrupts . | . . . Stealth | -11 -10 -10 --------- Run | Yrd Mat Min Distress Signals 2 | . 2 . Communications Jammed . | . . . Distress Signals . | . . . Times Spotted 41 | . 25 16 Peak Tracking Total 11 | . 8 11 Tactical Retreats 3 | . 3 . Traps | -11 -10 -10 ------- Run | Yrd Mat Min Traps Triggered 3 | . 3 . Indirectly . | . . . Trap Hack Attempts . | . . . Triggered . | . . . Disarmed . | . . . Reprogrammed . | . . . Reused . | . . . Traps Extracted . | . . . Installed . | . . . Triggered . | . . . Machines | -11 -10 -10 ---------- Run | Yrd Mat Min Machines Disabled . | . . . Max in Single Turn . | . . . Machines Repaired . | . . . Machines Dismantled . | . . . Machines Sabotaged . | . . . Overloaded Fab Kills . | . . . Hacking | -11 -10 -10 --------- Run | Yrd Mat Min Machines Accessed 4 | . 4 . Terminals 3 | . 3 . Fabricators . | . . . Repair Stations . | . . . Recycling Units 1 | . 1 . Scanalyzers . | . . . Garrison Access . | . . . Total Hacks 11 | . 11 . Successful 7 | . 7 . Failed 4 | . 4 . Catastrophic . | . . . Database Lockouts . | . . . Manual 7 | . 7 . Terminals 10 | . 10 . Fabricators . | . . . Repair Stations . | . . . Recycling Units 1 | . 1 . Scanalyzers . | . . . Garrison Access . | . . . Terminal Hacks 4 | . 4 . Unreport Threat 1 | . 1 . Locate Traps 1 | . 1 . Security Status 1 | . 1 . Hauler Manifests 1 | . 1 . Fabricator Hacks . | . . . Repair Station Hacks . | . . . Recycling Unit Hacks . | . . . Scanalyzer . | . . . Garrison Access Hacks . | . . . Unauthorized Hacks 3 | . 3 . Terminals 2 | . 2 . Track 1 | . 1 . Botnet 1 | . 1 . Fabricators . | . . . Repair Stations . | . . . Recycling Units 1 | . 1 . Tunnel 1 | . 1 . Scanalyzers . | . . . Garrison Access . | . . . Data Cores Recovered . | . . . Used . | . . . Hacking Detections 3 | . 3 . Full Trace Events . | . . . Feedback Events . | . . . Feedback Blocked . | . . . Robot Schematics Acquired . | . . . Robots Built . | . . . Authchips . | . . . Time . | . . . Total Robot Build Rating . | . . . Part Schematics Acquired . | . . . Parts Built . | . . . Authchips . | . . . Time . | . . . Total Part Build Rating . | . . . Parts Repaired . | . . . Time . | . . . Parts Recycled . | . . . Recycled Matter . | . . . Retrieved Matter . | . . . Retrieved Components . | . . . Parts Scanalyzed . | . . . Part Schematics Acquired . | . . . Parts Damaged . | . . . Bothacking | -11 -10 -10 ------------ Run | Yrd Mat Min Used RIF Installer . | . . . Robots Hacked . | . . . Non-combat . | . . . Combat . | . . . Robot Hacks Applied . | . . . Relay Couplers Released . | . . . Fabnet Peak Effective % . | . . . Robots Rewired . | . . . Allies Hacked . | . . . Hacks Repelled . | . . . Allies | -11 -10 -10 -------- Run | Yrd Mat Min Total Allies 3 | . . 3 Largest Group 3 | . . 3 Highest-Rated Group 40 | . . 40 Highest-Rated Ally 16 | . . 16 Total Orders . | . . . Ally Attacks 26 | . . 26 Total Damage 280 | . . 280 Kills 3 | . . 3 Allies Corrupted . | . . . Allies Melted . | . . . Intel | -11 -10 -10 ------- Run | Yrd Mat Min Robot Analysis Total . | . . . Derelict Logs Recovered . | . . . Drone Launches . | . . . Drone Recoveries . | . . . Exploration | -11 -10 -10 ------------- Run | Yrd Mat Min Turns Passed 1119 | 63 713 343 Spaces Moved 756 | 52 504 200 Core 3 | 3 . . Treads 312 | . 112 200 Legs . | . . . Wheels 441 | 49 392 . Hover . | . . . Flight . | . . . Fastest Speed 50 | 50 90 160 Average Speed 120 | 87 107 160 Slowest Speed 240 | 95 160 240 Overloaded Moves . | . . . Propulsion Burnouts . | . . . Robots Hopped . | . . . Cave-ins Triggered . | . . . Exploration Rate (%) 42 | 4 65 57 Regions Visited 2 Branch Regions 1 Pre-discovered Areas 1 | . 1 . Known Exits Taken . | . . . Unknown Exits Taken 2 | 1 1 . Scrap Searched . | . . . Spaces Dug . | . . . Terrain Destroyed 24 | . . 24 Melee . | . . . Projectile . | . . . AOE 24 | . . 24 Terrain Rammed . | . . . Walls Destroyed . | . . . Machines Disabled . | . . . Actions | -11 -10 -10 --------- Run | Yrd Mat Min Total 856 | 63 584 209 Wait 9 | . 9 . Move 754 | 51 503 200 Hop . | . . . Pick Up 15 | 4 11 . Fast Attach 8 | 7 1 . Attach 3 | . 3 . Detach . | . . . Swap 6 | . 5 1 Drop 3 | . 3 . Fire 57 | 1 48 8 Melee . | . . . Ram 1 | . 1 . Kick . | . . . Crush . | . . . Escape Stasis . | . . . Rewire . | . . . Trap . | . . . Miscellaneous . | . . . Route ------- -11/Scrapyard -10/Materials (discovered 3 exits: [*Mat] / [*Min x2]) -10/Mines (discovered 1 exit: [*Mat]) History --------- Turn | Location | Event 15 | -11/Scrapyard | Discovered new exit (range 16) 64 | -11/Scrapyard | Entered Materials 72 | -10/Materials | Discovered new exit (range 15) 205 | -10/Materials | Discovered new exit (range 16) 278 | -10/Materials | Discovered new exit (range 8) 303 | -10/Materials | Build established: Mutant 522 | -10/Materials | Core integrity fell below 50% 777 | -10/Materials | Entered Mines 800 | -10/Mines | Discovered new exit (range 8) 814 | -10/Mines | Assisted by bots powering up and referring to "LRC-V3" 848 | -10/Mines | Deemed a non-threat by the Exiles lab entrance 1060 | -10/Mines | Assembled infested the area 1081 | -10/Mines | Core integrity fell below 20% 1104 | -10/Mines | Destroyed 11 combat bots 1120 | -10/Mines | Destroyed by D-53 Grenadier with Mini Grenade Launcher Last Messages --------------- 01080_ as-90406 destroyed. 01081_ as-96618 suffers critical hit (Burn). 01082_ Destroyed Asb. Hover Unit. 01083_ as-48641 destroyed. 01083_ as-49990 destroyed. 01083_ as-96618 destroyed. 01084_ The unstable cave ceiling collapses. 01086_ as-59572 destroyed. 01087_ Acquired 19 matter. 01087_ U-05 Engineer lays Concrete. 01090_ Acquired 1 matter. 01092_ U-05 Engineer lays Concrete. 01100_ D-53 Grenadier unfolds itself. 01107_ Trooper 1b destroyed. 01107_ Trooper 1a destroyed. 01111_ as-45492 destroyed. 01114_ System corrupted: Ion Engine rejected. 01115_ as-12176 destroyed. 01115_ Lgt. Treads destroyed. 01119_ R-06 Scavenger collects Aluminum Leg. Map ----- +----------------------------------------------------+ | ???????????????? ??????????????? | | ????????????????# ?????????????? | | ????????????????# ?????????????? | | ????????????????# ?????????????? | | ???????????????## ?????????????? | | ??????????????## ?????????????? | | ??????????????? ####?????????? | | ???????????????# ##??????#? | | ??????????#???## # ?? #? | | ??????##### ??# ? ?? | | ????? ## ? ??? | | ????? #??? | | ??????# $#??? | | ?????????# #??? | | ??????????# %#????? | | ??????????# % #????? | | ??????????## d #????? | | ??????????????# dr ##???? | | ??????????????# ##??? | | ??????????????### # ##?? | | ???????????????##?### #?? | | ##????????????# ??## #?? | | ###??????????# ## #?? | | ???????????# ##? | | ?????????????### #? | | ???? ##???????## @ #? | | ??? #????????## #?? | | ?? #?????????## #?? | | # #??????????## #?? | | #????????????## ##?? | | #??????????????## #??? | | ## ###???????????????#### #??? | | #???#?????????????????#### #??? | | ??????????????????????# #??? | | ??????????????????????# #??? | | ??????????????????????# ####??? | | ???????????????#??????# #?????? | | ??????????????? ??????# #?????? | | ??????????????? ??????# #?????? | | ??????????????# #?????# #?????? | | ??????????????# #?????# #?????? | | ??????????????# #?????# #?????? | | ??????????????# #???### ###???? | | ??????????????# #??## ##??? | | #?????????????# #??# #??? | | ##???????????## #### #??? | | #??????????## ## #??? | | #?????????## """ #?? | | #????????## """ #?? | | #######??## ## """ #?? | +----------------------------------------------------+ Best States ------------- Heat Dissipation 35 Energy Generation 10 Energy Capacity 250 Matter Stores 300 Matter Capacity 300 Sight Range 16 Terrain Scan Density 10 Armor Coverage 150 Evasion (%) 42 Recoil Reduction 2 Item Schematics ----------------- None Robot Schematics ------------------ None Fabricated ------------ Nothing Alien Tech Used ----------------- None Achievements -------------- None Challenges ------------ None Game ------ Seed SiegeHardcellShield Manual? 0 Play Time 00:12:03 Cumulative 124.1 hours Start 2024.10.28 @ 18:02:32 End 2024.10.28 @ 18:12:27 Sessions 1 Manual Loads 0 Difficulty Rogue Special Mode None Game No. 44 Rogue 43 Adventurer 1 Explorer 0 Win Type - Total 2 Types 2/0/0/0/0/0/0/0/0 Lore% 39 Gallery% 53 Achievement% 45 Wizard Run 0 Options --------- Layout 0 ASCII 1 Keyboard 1 Movement Vi Keybinds 0 Fullscreen 2 Font 36/Terminus++ Map View 76x50 Zoom Use 0% Tactical HUD 1 Map Filters NONE Filters NONE Steam 1 RUN: 9c20c566-ec1c-4d7a-855f-1403e05f9dc2